bitfinex-derivatives/quotes_ETHF0:USTF0_20250918
["timestamp","ask_amount","ask_price","bid_price","bid_amount"]
[1758236514897,3.4214,4585.6,4585.5,0.8377]
[1758236516699,3.4214,4585.6,4585.5,0.6326]
[1758236518900,3.4214,4585.6,4585.5,0.8351]
[1758236519696,3.3146,4585.6,4585.5,0.8351]
[1758236523808,0.1068,4585.6,4585.5,0.8351]
[1758236524511,0.2116,4586.1,4586.0,0.8121]
[1758236526598,3.4194,4586.1,4586.0,0.8121]
[1758236530608,3.95377528,4586.1,4586.0,0.8121]
[1758236531109,3.4194,4586.1,4586.0,0.8121]
[1758236531307,3.95380294,4586.1,4586.0,0.8121]
[1758236532106,3.4418,4586.6,4586.0,0.5245]
[1758236532310,3.6534,4586.6,4586.5,0.8121]
[1758236532510,4.41949216,4586.6,4586.5,0.8121]
[1758236533502,3.2078,4587.1,4586.5,0.8121]
[1758236533706,1.21174319,4587.0,4586.9,0.4886]
[1758236534405,0.97774319,4587.0,4586.9,0.4886]
[1758236534608,0.97774319,4587.0,4586.9,0.6911]
[1758236534805,0.2116,4587.0,4586.9,0.6911]
[1758236537110,3.2078,4587.1,4587.0,0.121]
[1758236537311,3.2078,4587.1,4587.0,0.8121]
[1758236540010,0.1058,4587.1,4587.0,0.5245]
[1758236540412,0.2778,4587.1,4587.0,0.322]
[1758236540611,0.2778,4587.1,4587.0,0.6096]
[1758236540817,0.2116,4587.1,4587.0,0.6096]
[1758236541413,0.2116,4587.1,4587.0,0.8121]
[1758236542618,0.2116,4587.1,4587.0,0.4086]
[1758236542917,0.2778,4586.9,4586.8,0.0218]
[1758236543308,0.2116,4586.7,4586.6,0.2876]
[1758236543507,0.2778,4586.7,4586.6,0.2876]
[1758236545218,0.2116,4586.7,4586.6,0.4886]
[1758236545916,0.2116,4586.7,4586.6,0.6911]
[1758236546109,3.5456,4587.1,4587.0,0.322]
[1758236546315,3.5456,4587.1,4587.0,0.8121]
[1758236546316,3.6514,4587.1,4587.0,0.8121]
[1758236547622,3.7176,4587.1,4587.0,0.6096]
[1758236547921,3.4856,4587.1,4587.0,0.4086]
[1758236548220,4.2518465,4587.1,4587.0,0.4086]
[1758236549520,4.01917316,4587.1,4587.0,0.4086]
[1758236549723,4.25189516,4587.1,4587.0,0.4086]
[1758236550917,0.2122,4586.9,4586.8,0.0218]
[1758236551215,0.2785,4586.9,4586.5,0.4213]
[1758236551421,0.2122,4586.7,4586.6,0.3003]
[1758236551625,0.2122,4586.7,4586.3,0.3003]
[1758236551819,0.2122,4586.4,4586.3,0.3003]
[1758236552014,0.2122,4586.4,4586.3,0.5115]
[1758236553521,0.2785,4586.4,4586.3,0.5115]
[1758236554022,0.2122,4586.4,4586.3,0.5115]
[1758236557129,0.74621312,4586.4,4586.3,0.5115]
[1758236557328,0.97908253,4586.4,4586.3,0.5115]
[1758236557621,0.97908253,4586.4,4586.3,0.7069]
[1758236557826,1.27638253,4586.4,4586.3,0.3003]
[1758236558027,1.21008253,4586.4,4586.3,0.5115]
[1758236558418,1.21008253,4586.4,4586.3,0.7069]
[1758236559124,0.97908253,4586.4,4586.3,0.7069]
[1758236559325,1.21008253,4586.4,4586.3,0.7069]
[1758236561632,0.76688253,4586.4,4586.3,0.7069]
[1758236561926,0.64011312,4586.4,4586.3,0.7069]
[1758236562428,0.1061,4586.4,4586.3,0.7069]
[1758236564224,3.2078,4586.6,4586.5,0.1192]
[1758236564430,4.20473022,4586.6,4586.5,0.8261]
[1758236564729,4.31083022,4586.6,4586.5,0.8261]
[1758236565831,4.41693022,4586.6,4586.5,0.8261]
[1758236568130,4.48323022,4586.6,4586.5,0.4195]
[1758236568429,4.25323022,4586.6,4586.5,0.4195]
[1758236568631,4.48323022,4586.6,4586.5,0.4195]
[1758236569133,4.41693022,4586.6,4586.5,0.6307]
[1758236569632,4.41693022,4586.6,4586.5,0.8261]
[1758236570029,4.18693022,4586.6,4586.5,0.8261]
[1758236570231,4.41693022,4586.6,4586.5,0.8261]
[1758236570932,1.20913022,4586.6,4586.5,0.8261]
[1758236571129,4.41693022,4586.6,4586.5,0.8261]
[1758236571328,4.18405985,4586.6,4586.5,0.8261]
[1758236571730,4.18405985,4586.6,4586.5,0.6307]
[1758236574545,4.41810455,4586.6,4586.5,0.6307]
[1758236575942,3.97590455,4586.6,4586.5,0.8261]
[1758236576142,0.229,4586.9,4586.5,0.8261]
[1758236576340,0.229,4586.9,4586.8,0.3955]
[1758236576542,0.76377732,4586.9,4586.8,0.7142]
[1758236576848,1.27795814,4586.9,4586.8,0.513]
[1758236577347,1.21125814,4586.9,4586.8,0.513]
[1758236578944,0.98225814,4586.9,4586.8,0.513]
[1758236579144,1.21125814,4586.9,4586.8,0.513]
[1758236579843,0.87555814,4586.9,4586.8,0.7142]
[1758236580048,0.99785814,4586.9,4586.8,0.7142]
[1758236580449,1.10395814,4586.9,4586.8,0.7142]
[1758236580852,1.21005814,4586.9,4586.8,0.7142]
[1758236581149,0.76885814,4586.9,4586.8,0.7142]
[1758236581347,0.229,4587.3,4587.2,0.4123]
[1758236581545,0.229,4587.3,4587.2,0.7245]
[1758236581740,0.99861095,4587.3,4587.2,0.7245]
[1758236581945,0.76961095,4587.3,4587.2,0.7245]
[1758236582346,3.2078,4587.6,4587.2,0.7245]
[1758236582347,0.229,4587.5,4587.2,0.7245]
[1758236582551,0.76946702,4587.4,4587.3,0.7245]
[1758236583151,3.2078,4587.6,4587.5,0.1161]
[1758236583152,3.4368,4587.6,4587.5,0.1161]
[1758236583451,4.08309204,4587.6,4587.5,0.8406]
[1758236583649,3.97699204,4587.6,4587.5,0.8406]
[1758236584244,3.2078,4587.6,4587.5,0.8406]
[1758236586353,3.42,4588.1,4588.0,0.3172]
[1758236586556,4.41643436,4588.1,4588.0,0.6294]
[1758236586944,4.18843436,4588.1,4588.0,0.8406]
[1758236587157,3.648,4588.1,4588.0,0.8406]
[1758236587355,3.42,4588.1,4588.0,0.8406]
[1758236590356,3.4863,4588.1,4588.0,0.4283]
[1758236592556,3.7143,4588.1,4588.0,0.4283]
[1758236594851,3.648,4588.1,4588.0,0.6294]
[1758236595257,3.7143,4588.1,4588.0,0.6294]
[1758236597059,3.648,4588.1,4588.0,0.6294]
[1758236603562,3.7143,4588.1,4588.0,0.6294]
[1758236603762,0.2122,4587.7,4587.6,0.5133]
[1758236604357,0.2785,4587.7,4587.6,0.3122]
[1758236606161,0.2785,4587.2,4587.1,0.3122]
[1758236607356,0.51186415,4587.2,4587.1,0.3122]
[1758236607560,1.04682443,4587.2,4587.1,0.3122]
[1758236608065,0.98052443,4587.2,4587.1,0.5133]
[1758236608256,1.04652443,4587.2,4587.1,0.3122]
[1758236608462,0.98052443,4587.2,4587.1,0.5166]
[1758236608760,0.98052443,4587.2,4587.1,0.7239]
[1758236611870,0.76832443,4587.2,4587.1,0.7239]
[1758236612372,0.76839134,4587.2,4587.1,0.7239]
[1758236613272,3.2078,4587.4,4587.2,0.3028]
[1758236613464,3.2078,4587.4,4587.0,0.1161]
[1758236613465,3.2078,4587.4,4587.3,0.7145]
[1758236613768,0.227,4587.6,4587.5,0.8395]
[1758236614673,0.227,4587.9,4587.7,0.3028]
[1758236614867,0.227,4587.9,4587.8,0.7145]
[1758236615068,0.76856644,4587.9,4587.8,0.7145]
[1758236615773,0.87416644,4587.9,4587.8,0.7145]
[1758236616767,0.76856644,4587.9,4587.8,0.7145]
[1758236619776,3.4348,4588.0,4587.9,0.3028]
[1758236619978,4.20347454,4588.0,4587.9,0.7145]
[1758236620372,4.30907454,4588.0,4587.9,0.7145]
[1758236621274,4.41467454,4588.0,4587.9,0.7145]
[1758236624574,3.2078,4588.0,4587.9,0.7145]
[1758236624782,3.419,4588.0,4587.9,0.7145]
[1758236625078,4.18757692,4588.0,4587.9,0.7145]
[1758236626270,4.18757692,4588.0,4587.9,0.3028]
[1758236626471,4.25357692,4588.0,4587.9,0.3028]
[1758236626981,4.18757692,4588.0,4587.9,0.7145]
[1758236628378,3.419,4588.0,4587.9,0.7145]
[1758236628679,4.1875894,4588.0,4587.9,0.7145]
[1758236628881,8.2765894,4588.0,4586.2,1.56935865]
[1758236629076,3.2078,4586.3,4586.1,0.3028]
[1758236629282,3.2078,4586.3,4586.0,0.125]
[1758236629283,1.03091172,4586.2,4586.0,0.125]
[1758236629477,0.76891172,4586.1,4585.5,0.125]
[1758236629675,0.76891172,4586.1,4585.0,0.125]
[1758236629676,0.39233,4585.4,4585.3,1.72e-06]
[1758236629880,0.39236,4585.1,4585.0,0.20440172]
[1758236630184,4.36907172,4585.1,4585.0,1.72e-06]
[1758236630387,0.3924,4584.6,4584.0,0.125]
[1758236630579,0.62584926,4584.6,4584.5,0.5367]
[1758236630878,0.62584926,4584.6,4584.5,0.6617]
[1758236631484,0.62584926,4584.6,4584.5,0.9645]
[1758236634585,0.73323401,4584.6,4584.5,0.9645]
[1758236636187,0.74223401,4584.6,4584.5,0.31528]
[1758236636384,1.08145,4584.1,4584.0,2.05071]
[1758236636586,1.42228401,4584.1,4584.0,2.05071]
[1758236636886,0.79299,4583.6,4583.4,3.96344]
[1758236637087,1.08157,4582.6,4582.5,0.1212]
[1758236637290,1.08157,4582.6,4581.9,3.2078]
[1758236637291,0.805,4582.0,4581.9,3.2078]
[1758236637482,1.14583401,4582.0,4581.9,3.2078]
[1758236637882,0.7103,4581.0,4580.5,0.1212]
[1758236638081,0.90435,4580.6,4580.5,0.5235]
[1758236638283,0.1206,4580.5,4580.4,3.2078]
[1758236638489,0.39287,4579.1,4579.0,0.4241]
[1758236638684,3.94150401,4579.1,4579.0,0.8264]
[1758236638878,3.60059,4580.1,4580.0,0.8264]
[1758236639079,0.39279,4580.1,4580.0,0.8264]
[1758236639286,3.60059,4580.1,4580.0,0.8264]
[1758236639788,0.39279,4580.2,4580.1,0.7079]
[1758236640080,3.2078,4580.8,4580.1,0.9859]
[1758236640286,0.39275,4580.6,4580.5,0.5208]
[1758236640789,0.39275,4580.6,4580.5,0.8264]
[1758236641598,0.39273,4580.9,4580.8,0.7079]
[1758236641793,3.2078,4582.1,4582.0,0.6228]
[1758236641994,3.60042,4582.1,4582.0,0.8264]
[1758236642198,0.39266,4581.6,4581.5,0.5208]
[1758236642496,3.60046,4581.6,4581.5,0.3172]
[1758236642795,3.60046,4581.6,4581.5,0.8264]
[1758236643696,0.39266,4581.6,4581.5,4.8264]
[1758236643892,3.2078,4582.1,4582.0,0.8264]
[1758236644400,3.60042,4582.1,4582.0,0.8264]
[1758236645199,3.2078,4582.6,4582.5,0.8264]
[1758236645397,3.60037,4582.6,4582.5,1.1024]
[1758236646397,3.81077,4582.6,4582.5,0.24309]
[1758236646604,0.39262,4582.1,4582.0,0.1185]
[1758236646798,0.60302,4582.1,4582.0,0.5208]
[1758236646996,0.60302,4582.1,4582.0,0.7958]
[1758236647499,0.60302,4582.1,4582.0,0.5208]
[1758236647801,0.60302,4582.1,4582.0,0.7958]
[1758236648001,0.39262,4582.1,4582.0,0.7958]
[1758236648299,0.39262,4582.1,4582.0,4.7958]
[1758236648496,0.39257,4582.6,4582.5,0.5208]
[1758236648796,0.39257,4582.6,4582.5,1.1014]
[1758236648996,0.39257,4582.6,4582.5,0.8264]
[1758236649301,0.95559,4582.4,4582.3,0.3056]
[1758236649494,0.95559,4582.4,4582.3,0.5796]
[1758236650096,3.2078,4582.6,4582.0,0.1987]
[1758236650097,1.10292,4582.1,4582.0,0.1987]
[1758236650399,1.10292,4582.1,4582.0,0.4727]
[1758236650597,1.10292,4582.1,4582.0,0.1987]
[1758236650998,1.44390943,4582.1,4582.0,0.1987]
[1758236651195,1.14270943,4582.1,4582.0,0.5208]
[1758236651405,0.94400943,4582.1,4582.0,0.5208]
[1758236651999,0.94400943,4582.1,4582.0,0.8264]
[1758236652400,1.82244943,4582.1,4581.6,0.2205]
[1758236652600,0.80172,4582.1,4582.0,0.274]
[1758236652804,1.14271327,4582.1,4582.0,0.274]
[1758236653004,1.44391327,4582.1,4582.0,0.7783]
[1758236653597,0.73361327,4582.1,4582.0,1.1004]
[1758236653794,0.73361327,4582.1,4582.0,5.1004]
[1758236654899,3.2078,4582.6,4582.4,0.1987]
[1758236655105,1.16392403,4582.5,4582.4,0.7079]
[1758236655401,1.55650403,4582.5,4582.4,0.9799]
[1758236655606,1.34610403,4582.5,4582.4,0.9799]
[1758236655796,0.73354437,4582.5,4582.4,0.9799]
[1758236655996,0.73354437,4582.5,4582.4,4.9799]
[1758236656195,0.95470935,4582.5,4582.4,4.9799]
[1758236656395,0.39255,4582.9,4582.5,0.39258]
[1758236656597,0.39253,4583.1,4582.8,0.39256]
[1758236656802,0.39253,4583.1,4583.0,0.8264]
[1758236657605,0.39253,4583.1,4583.0,4.8264]
[1758236657999,0.39252,4583.3,4583.0,4.8264]
[1758236658306,0.39249,4583.6,4583.5,0.8264]
[1758236658605,0.39249,4583.6,4583.5,1.0974]
[1758236660094,0.39249,4583.6,4583.5,5.0974]
[1758236663405,0.4091,4584.6,4584.5,0.8264]
[1758236663605,3.4182,4585.1,4585.0,0.8264]
[1758236663903,3.4182,4585.1,4585.0,1.0944]
[1758236664402,3.9181,4585.1,4585.0,1.0944]
[1758236664602,3.9181,4585.1,4585.0,0.9759]
[1758236666710,3.9181,4585.1,4585.0,0.7723]
[1758236667507,3.9181,4585.1,4585.0,0.4667]
[1758236667698,3.9181,4585.1,4584.2,0.3056]
[1758236667699,0.4091,4584.6,4584.2,0.3056]
[1758236667900,0.3985,4584.4,4584.3,0.4789]
[1758236668205,0.6991,4584.4,4584.3,0.5222]
[1758236668407,0.6991,4584.2,4584.1,1.4504]
[1758236669710,0.6991,4584.2,4584.1,0.7138]
[1758236669907,0.3985,4584.2,4584.1,0.7138]
[1758236670412,0.6991,4584.2,4584.1,0.5222]
[1758236670808,0.6991,4584.2,4584.1,0.7138]
[1758236671909,0.6991,4584.2,4584.0,0.266]
[1758236671910,0.3006,4584.1,4584.0,0.266]
[1758236672110,0.6991,4584.1,4584.0,0.7882]
[1758236672812,0.6991,4584.1,4584.0,1.107]
[1758236673214,0.6991,4584.1,4584.0,0.841]
[1758236673615,0.2039,4584.1,4584.0,0.841]
[1758236674107,3.2078,4584.4,4584.3,0.2119]
[1758236674309,3.2078,4584.4,4584.3,0.7138]
[1758236674502,3.4117,4584.4,4584.3,0.7138]
[1758236674708,3.7734,4584.9,4584.3,0.4035]
[1758236674907,3.9069,4584.9,4584.8,0.7138]
[1758236675108,3.4117,4584.9,4584.8,0.7138]
[1758236676012,3.6063,4584.9,4584.8,0.7138]
[1758236676202,3.9069,4584.9,4584.5,0.1272]
[1758236676408,0.6991,4584.7,4584.6,0.7862]
[1758236676609,0.6991,4584.7,4584.6,0.9778]
[1758236677911,0.2039,4584.7,4584.6,0.9778]
[1758236678107,3.4117,4584.9,4584.8,0.7138]
[1758236678507,3.6063,4584.9,4584.8,0.7138]
[1758236678709,0.3985,4584.9,4584.8,0.7138]
[1758236680414,0.6991,4584.9,4584.8,0.5222]
[1758236680809,0.3985,4584.9,4584.7,0.262]
[1758236681015,0.6991,4584.8,4584.7,0.262]
[1758236681421,0.6991,4584.8,4584.7,0.7842]
[1758236682321,0.3006,4584.7,4584.6,0.262]
[1758236682516,0.6991,4584.7,4584.6,0.262]
[1758236683716,0.6991,4584.7,4584.6,0.7842]
[1758236685618,0.6991,4584.7,4584.6,0.9758]
[1758236685913,0.6991,4584.7,4584.6,0.7138]
[1758236687013,0.2039,4584.7,4584.6,0.7138]
[1758236687314,3.4117,4584.9,4584.8,0.7138]
[1758236687821,3.2078,4584.9,4584.8,0.7138]
[1758236688111,0.3006,4585.2,4584.8,0.4035]
[1758236688316,0.3985,4585.2,4585.1,0.7138]
[1758236690413,0.6991,4585.2,4585.1,0.7138]
[1758236693415,0.6991,4585.2,4585.1,0.5222]
[1758236693622,0.3006,4585.1,4584.9,0.3103]
[1758236693822,0.6991,4585.0,4584.9,0.5222]
[1758236694021,0.6991,4585.0,4584.7,0.2798]
[1758236694217,0.2997,4584.9,4584.7,0.5901]
[1758236694421,0.7022,4584.8,4584.7,0.5375]
[1758236695224,0.7022,4584.8,4584.7,0.747]
[1758236695522,0.4025,4584.8,4584.7,0.747]
[1758236695716,0.4025,4584.8,4584.7,0.7252]
[1758236695916,0.7022,4584.8,4584.7,0.7252]
[1758236697612,0.2997,4584.7,4584.5,1.4504]
[1758236697824,0.7022,4584.6,4584.5,1.4504]
[1758236698721,0.7022,4584.6,4584.2,0.3128]
[1758236699021,0.3164,4584.5,4584.3,0.291]
[1758236699219,0.7211,4584.3,4584.2,0.7135]
[1758236700823,0.4047,4584.3,4584.2,0.7135]
[1758236701721,0.3164,4585.4,4585.0,0.1183]
[1758236701929,0.7211,4585.4,4585.3,0.6917]
[1758236703626,0.7211,4585.4,4585.0,0.1183]
[1758236703627,0.7211,4585.4,4585.0,0.291]
[1758236703822,0.4047,4585.1,4585.0,0.546]
[1758236704027,0.7211,4585.1,4585.0,0.7549]
[1758236705423,0.7211,4585.1,4585.0,0.9467]
[1758236706018,0.7211,4585.1,4585.0,1.065]
[1758236712330,0.7211,4584.6,4584.5,1.5687]
[1758236712530,0.7211,4584.6,4584.5,1.7034]
[1758236712926,0.7211,4584.6,4584.5,1.4504]
[1758236713233,0.7211,4584.6,4584.2,0.0218]
[1758236713433,0.4047,4584.3,4584.2,0.2738]
[1758236713628,0.7211,4584.3,4584.2,0.7737]
[1758236713929,0.7211,4584.3,4584.2,0.9437]
[1758236715632,0.7211,4584.3,4584.2,0.6917]
[1758236716543,3.9289,4584.3,4584.2,0.6917]
[1758236717436,3.9289,4584.3,4583.9,1.4504]
[1758236717437,0.4047,4584.1,4583.9,1.4504]
[1758236717637,0.8188,4584.0,4583.9,1.4504]
[1758236718029,0.8188,4584.0,4582.8,0.251]
[1758236718030,5.4724853,4584.0,4582.6,0.291]
[1758236718242,3.2078,4582.8,4582.7,0.4999]
[1758236718433,3.2078,4582.8,4582.7,0.291]
[1758236718833,3.2078,4582.8,4582.7,0.4999]
[1758236719033,3.2078,4582.8,4582.7,0.6917]
[1758236720230,3.2078,4583.3,4582.7,0.6917]
[1758236720436,3.2078,4583.3,4583.2,0.4007]
[1758236720636,3.2078,4583.3,4583.2,0.6917]
[1758236721134,3.2078,4583.8,4583.5,0.1183]
[1758236721439,3.2078,4583.8,4583.7,0.6917]
[1758236723936,3.2078,4584.4,4584.3,0.4007]
[1758236724138,3.2078,4584.4,4584.3,0.9417]
[1758236724735,0.25,4585.3,4585.0,0.81]
[1758236724736,3.2078,4585.1,4585.0,0.81]
[1758236726935,3.2078,4585.1,4585.0,0.4093]
[1758236727636,7.67490001,4585.1,4584.5,0.1183]
[1758236727937,3.2078,4584.6,4584.2,2.4803]
[1758236728139,3.2078,4584.6,4584.3,0.2978]
[1758236728338,4.249,4584.5,4584.2,2.1825]
[1758236728548,4.249,4584.5,4584.3,0.2978]
[1758236728842,0.9696335,4584.4,4584.0,0.1246]
[1758236729039,0.9696335,4584.4,4583.1,0.153]
[1758236729040,3.2078,4584.1,4583.1,0.153]
[1758236729339,3.2078,4583.6,4583.1,0.153]
[1758236729642,3.4558,4583.6,4583.0,0.1183]
[1758236729841,7.4558,4583.6,4583.0,0.1183]
[1758236730143,3.4558,4583.6,4583.0,0.1183]
[1758236730941,3.4558,4583.6,4583.5,0.4161]
[1758236733043,3.2078,4583.6,4583.5,0.6142]
[1758236734834,3.2078,4583.6,4583.5,0.8209]
[1758236736939,2.182,4583.5,4582.0,0.10254674]
[1758236737139,3.2078,4582.1,4580.0,0.1246]
[1758236737441,3.2078,4580.7,4580.5,0.1246]
[1758236737636,3.4548,4580.7,4580.5,0.1246]
[1758236738247,3.4548,4580.7,4580.6,0.1981]
[1758236738544,3.4548,4580.7,4580.5,0.1246]
[1758236739147,3.4548,4580.7,4580.6,0.2978]
[1758236740346,3.2078,4580.7,4580.6,0.2978]
[1758236740546,3.4538,4580.7,4580.6,0.2978]
[1758236743335,3.4528,4580.7,4580.6,0.2978]
[1758236744646,3.2078,4580.7,4580.6,0.2978]
[1758236744847,3.4528,4580.7,4580.6,0.2978]
[1758236747447,3.4528,4580.7,4580.6,0.4959]
[1758236747947,3.2078,4580.7,4580.6,0.7026]
[1758236748143,3.2078,4580.7,4580.6,0.8272]
[1758236749146,3.2078,4580.7,4580.6,4.8272]
[1758236749840,3.0832,4580.7,4580.6,4.7026]
[1758236750447,3.2078,4581.2,4580.6,4.7026]
[1758236750649,3.2078,4581.2,4581.1,0.7026]
[1758236750948,3.2078,4581.2,4581.1,0.8209]
[1758236751151,3.2078,4581.2,4581.1,0.7026]
[1758236753349,3.2078,4581.2,4580.5,0.1246]
[1758236753554,3.2078,4580.7,4580.5,0.1246]
[1758236754354,3.2078,4580.7,4580.5,0.2429]
[1758236754548,3.2078,4580.7,4580.6,0.1981]
[1758236755447,3.2078,4580.7,4580.6,0.5162]
[1758236755950,3.2078,4580.7,4580.6,0.3181]
[1758236756151,3.2078,4580.7,4580.5,0.1166]
[1758236756543,0.243,4580.6,4580.5,0.1166]
[1758236756956,0.7740152,4580.6,4580.5,0.1166]
[1758236758256,0.99991091,4580.6,4580.5,0.4306]
[1758236761149,0.75691091,4580.6,4580.5,0.8388]
[1758236761449,0.5310152,4580.6,4580.5,4.9571]
[1758236761645,3.2078,4581.2,4581.1,0.4082]
[1758236761848,3.96634038,4581.2,4581.1,0.7222]
[1758236762049,3.96634142,4581.2,4581.1,0.7222]
[1758236764456,3.96634142,4581.2,4581.1,0.314]
[1758236765054,4.20734142,4581.2,4581.1,0.314]
[1758236765955,3.96634142,4581.2,4581.1,0.7222]
[1758236766354,3.96634142,4581.2,4581.1,0.5197]
[1758236766558,3.96634142,4581.2,4581.1,0.314]
[1758236767465,3.96634142,4581.2,4581.1,0.7222]
[1758236771466,3.96730626,4581.2,4581.1,0.7222]
[1758236782078,3.96730626,4581.2,4581.1,0.5197]
[1758236782376,3.96730626,4581.2,4581.1,0.314]
[1758236786173,3.96730626,4581.2,4581.1,0.7222]
[1758236787676,3.96730626,4581.2,4581.1,0.314]
[1758236791672,8.18559626,4581.2,4581.0,0.1174]
[1758236791870,1.21579626,4581.1,4580.6,0.3098]
[1758236792071,3.2078,4580.7,4580.5,0.1166]
[1758236792271,0.99750626,4580.6,4580.1,2.184]
[1758236792583,3.2078,4580.2,4579.7,0.3098]
[1758236792777,0.75950626,4580.1,4580.0,0.4344]
[1758236794977,0.75950626,4580.1,4580.0,0.8257]
[1758236795983,0.75950626,4580.1,4580.0,0.944]
[1758236796184,0.53240714,4580.1,4580.0,0.944]
[1758236797180,3.2078,4580.2,4580.0,0.6342]
[1758236797489,3.2078,4580.2,4580.1,0.7011]
[1758236797683,3.74089228,4580.2,4580.1,0.7011]
[1758236798087,3.2078,4580.2,4580.1,0.7011]
[1758236798985,3.2078,4580.2,4580.1,4.7011]
[1758236799186,3.2078,4580.2,4580.1,0.7011]
[1758236810594,3.2078,4580.2,4580.1,0.9391]
[1758236811897,3.2078,4581.2,4581.1,0.7011]
[1758236819400,221.082,4586.5,4581.1,0.7011]
[1758236819401,3.2078,4581.7,4581.6,0.6919]
[1758236819604,3.2078,4582.1,4582.0,0.813]
[1758236820204,3.2078,4582.1,4582.0,0.9313]
[1758236821611,3.2078,4582.6,4582.5,0.1211]
[1758236821798,3.2078,4582.6,4582.5,0.4131]
[1758236821799,3.73989345,4582.6,4582.5,0.4131]
[1758236822000,3.97789345,4582.6,4582.5,0.4131]
[1758236823099,8.19611345,4582.6,4581.8,0.292]
[1758236823304,3.2078,4582.0,4581.5,0.1211]
[1758236823607,0.76982693,4581.9,4581.2,0.292]
[1758236823804,3.2078,4581.5,4581.2,0.292]
[1758236824003,3.2078,4581.5,4581.3,0.1183]
[1758236824400,3.4458,4581.5,4581.2,0.292]
[1758236824608,3.4458,4581.5,4581.2,0.4103]
[1758236825105,0.53213892,4581.4,4581.2,0.4103]
[1758236825306,3.4458,4581.5,4581.2,0.4103]
[1758236825502,3.4458,4581.5,4580.9,0.0218]
[1758236825503,0.77017345,4581.4,4580.9,0.0218]
[1758236825698,3.2078,4581.0,4580.9,0.0218]
[1758236825902,3.4458,4581.0,4580.9,0.0218]
[1758236826103,3.4458,4581.0,4580.5,0.1211]
[1758236826307,3.4458,4581.0,4580.7,0.292]
[1758236826709,3.4458,4581.0,4580.9,0.292]
[1758236827103,3.2078,4581.0,4580.9,0.8102]
[1758236828309,3.2078,4581.0,4580.9,0.4103]
[1758236828910,3.2078,4581.0,4580.9,0.6176]
[1758236831806,3.2078,4581.0,4580.9,0.4103]
[1758236832006,3.2078,4581.0,4580.8,0.292]
[1758236832208,0.238,4580.9,4580.7,0.0218]
[1758236832812,0.238,4580.9,4580.7,0.3138]
[1758236833008,0.238,4580.9,4580.8,0.292]
[1758236833308,4.2183,4580.8,4580.0,0.4131]
[1758236833609,3.2078,4580.3,4580.0,0.4131]
[1758236833911,0.99519269,4580.2,4580.0,0.4131]
[1758236834114,0.75719269,4580.1,4579.5,0.1211]
[1758236834306,0.76952146,4580.0,4579.7,0.292]
[1758236834611,3.2078,4579.8,4579.7,0.292]
[1758236835205,3.73992445,4579.8,4579.7,0.292]
[1758236835610,3.97692445,4579.8,4579.7,0.292]
[1758236836014,3.73992445,4579.8,4579.7,0.4993]
[1758236836217,3.97692445,4579.8,4579.7,0.292]
[1758236837310,8.18245786,4579.8,4579.0,0.1211]
[1758236837510,35.374,4580.7,4579.0,0.1211]
[1758236837511,3.2078,4579.1,4579.0,0.1211]
[1758236837713,3.2078,4579.1,4578.9,0.021]
[1758236837714,4.20106195,4579.1,4578.9,0.021]
[1758236838009,0.75625751,4579.0,4578.9,0.021]
[1758236838215,0.53212445,4579.0,4578.9,0.313]
[1758236838614,0.76912445,4579.0,4578.9,0.313]
[1758236839211,0.237,4579.0,4578.9,0.313]
[1758236840207,0.0474,4578.1,4578.0,0.3284]
[1758236840517,0.2844,4578.1,4578.0,0.1211]
[1758236840919,0.0474,4578.1,4578.0,0.3284]
[1758236841112,0.2844,4578.1,4578.0,0.3284]
[1758236841508,0.2844,4578.1,4578.0,0.521]
[1758236841712,0.0474,4578.1,4578.0,0.521]
[1758236841910,0.2844,4578.1,4578.0,0.521]
[1758236842315,0.0474,4578.1,4578.0,0.813]
[1758236842621,0.2844,4578.1,4578.0,0.813]
[1758236843315,3.2078,4578.3,4578.1,0.292]
[1758236843618,3.2078,4578.3,4578.1,0.8102]
[1758236843920,3.2552,4578.8,4578.7,0.4993]
[1758236844135,3.4922,4578.8,4578.7,0.4993]
[1758236844522,3.2552,4578.8,4578.7,0.4993]
[1758236844722,3.4922,4578.8,4578.7,0.4993]
[1758236845920,3.2552,4578.8,4578.7,0.4993]
[1758236846324,3.4685,4578.8,4578.7,0.6919]
[1758236846518,3.2078,4578.8,4578.7,0.6919]
[1758236846719,40.8,4580.1,4579.0,0.1211]
[1758236846720,0.237,4579.1,4579.0,0.1211]
[1758236847022,0.237,4579.1,4579.0,0.813]
[1758236847326,0.237,4579.2,4579.1,0.6919]
[1758236848216,3.2078,4579.3,4579.2,0.2957]
[1758236848417,3.4687,4579.3,4579.2,0.8181]
[1758236849024,3.2317,4579.3,4579.2,0.8181]
[1758236849426,3.4687,4579.3,4579.2,0.8181]
[1758236851222,3.4926,4579.3,4579.2,0.8181]
[1758236857326,0.015,4578.5,4578.4,0.0059]
[1758236857627,3.5076,4578.5,4578.1,0.2957]
[1758236857829,0.0478,4578.3,4578.2,0.2957]
[1758236858131,0.2848,4578.3,4578.2,0.414]
[1758236858324,0.0239,4578.1,4578.0,0.4168]
[1758236858524,0.0478,4578.1,4578.0,0.6097]
[1758236858830,0.0478,4578.1,4578.0,0.728]
[1758236859628,3.2078,4578.5,4578.0,0.9392]
[1758236859828,3.2078,4578.5,4578.1,0.8181]
[1758236859829,0.0239,4578.2,4578.1,0.8181]
[1758236860219,0.0239,4578.2,4578.1,0.6998]